Cogmind - Beta 10.2 @@@ ROGUE MODE // 2021.06.07 @ 11:49:15 Player: Pimski Result: Self-destructed Performance ------------- Evolutions (2) 1000 Regions Visited (6) 1200 Robots Destroyed (4) 20 Value Destroyed (85) 85 Prototype IDs (23) 460 Alien Tech Used (0) 0 Bonus (795) 795 TOTAL SCORE: 3560 Bonus ------- Pacifist 270 Follower Combat Kills 25 Entered Garrisons 200 Aligned with FarCom 300 Cogmind --------- Core Integrity 308/550 Matter 300/300 Energy 100/100 System Corruption 0% Temperature Cool (0) Movement Core (50) Location -8/Garrison Parts ------- > --- POWER (1) -------- (None) > --- PROPULSION (3) --- Advanced Treads > --- UTILITY (5) ------ Signal Interpreter Improved Light Armor Plating Hacking Suite Hacking Suite > --- WEAPON (2) ------- (None) > --- INVENTORY (4) ---- Light Nuclear Core Cloak of Protection Peak State ------------ > --- POWER ------------ (None) > --- PROPULSION ------- Advanced Treads Advanced Treads Advanced Treads > --- UTILITY ---------- Signal Interpreter Hacking Suite Hacking Suite > --- WEAPON ----------- Hammer > --- INVENTORY -------- Light Nuclear Core Advanced Treads Cloak of Protection Improved Light Armor Plating [Rating: 18] Favorites ----------- Power Light Ion Engine Engine Light Ion Engine Propulsion Light Treads Treads Light Treads Leg Aluminum Leg Utility Signal Interpreter Storage Small Storage Unit Processor Signal Interpreter Hackware Hacking Suite Protection Improved Light Armor Plating Weapon Hammer Energy Gun EM Pulse Gun Ballistic Gun Light Assault Rifle Impact Weapon Hammer Build | -11 -10 -10 -10 -9 -8 -8 ------- Run | Scr Mat Min Exi Min Mat Gar Slots Evolved 4 | . . . . . 4 . Power . | . . . . . . . Propulsion 1 | . . . . . 1 . Utility 3 | . . . . . 3 . Weapon . | . . . . . . . Parts Attached 16 | 1 2 2 . 1 8 2 Power . | . . . . . . . Engine . | . . . . . . . Core . | . . . . . . . Reactor . | . . . . . . . Propulsion 7 | 1 . 1 . 1 3 1 Treads 7 | 1 . 1 . 1 3 1 Leg . | . . . . . . . Wheel . | . . . . . . . Hover . | . . . . . . . Flight . | . . . . . . . Utility 5 | . 1 1 . . 2 1 Device . | . . . . . . . Storage . | . . . . . . . Processor 1 | . 1 . . . . . Hackware 2 | . . . . . 2 . Protection 2 | . . 1 . . . 1 Artifact . | . . . . . . . Weapon 4 | . 1 . . . 3 . Energy Gun . | . . . . . . . Energy Cannon . | . . . . . . . Ballistic Gun . | . . . . . . . Ballistic Cannon . | . . . . . . . Launcher . | . . . . . . . Special Weapon . | . . . . . . . Impact Weapon 4 | . 1 . . . 3 . Slashing Weapon . | . . . . . . . Piercing Weapon . | . . . . . . . Special Melee Weapon . | . . . . . . . Unidentified Prototypes . | . . . . . . . Parts Lost 5 | . 1 . . . 3 1 Power . | . . . . . . . Propulsion 3 | . . . . . 2 1 Utility . | . . . . . . . Weapon 2 | . 1 . . . 1 . Highest Loss Streak 3 | . 1 . . . 3 1 Average Slot Usage (%) 53 | . 56 50 57 57 50 46 Treads 25 | . 14 28 28 28 24 14 Processor 11 | . 9 14 14 14 9 9 Hackware 3 | . . . . . 7 18 Protection 6 | . . 8 14 14 1 5 Impact Weapon 3 | . . . . . 7 . Naked Turns . | . . . . . . . Heaviest Build 5 | 3 3 3 3 3 5 3 Greatest Support 44 | 3 3 3 3 3 3 44 Greatest Overweight (x) 1 | . . . . . 1 . Average Overweight (x) . | . . . . . . . Largest Inventory Capacity 6 | 6 4 4 4 4 4 4 Average Capacity 4 | 4 4 4 4 4 4 4 Most Carried 5 | 5 4 4 4 4 4 4 Average Carried 3 | 4 3 3 4 4 3 2 Final Capacity 4 | 4 4 4 4 4 4 4 Final Carried 4 | 4 4 4 4 4 4 2 Class Distribution -------------------- 90% | Mutant 9% | Hacker-Mutant Dominant Class ---------------- Mutant | -10/Materials Mutant | -10/Mines Mutant | -10/Exiles Mutant | -9/Mines Mutant | -8/Materials Hacker-Mutant | -8/Garrison Resources | -11 -10 -10 -10 -9 -8 -8 ----------- Run | Scr Mat Min Exi Min Mat Gar Matter Collected 331 | 186 . 50 . 10 70 15 Remotely . | . . . . . . . Salvage Created 106 | . . . . . 86 20 Parts 1 | . . . . . . 1 Haulers Intercepted . | . . . . . . . Recyclers Shooed . | . . . . . . . Parts Field Recycled . | . . . . . . . Retrieved Matter . | . . . . . . . Parts Self-Destructed . | . . . . . . . Prevented . | . . . . . . . Kills | -11 -10 -10 -10 -9 -8 -8 ------- Run | Scr Mat Min Exi Min Mat Gar Combat Hostiles Destroyed 1 | . . . . . . 1 Melee 1 | . . . . . . 1 Classes Destroyed 2 | . . . . . 1 1 Watcher 3 | . . . . . 3 . Swarmer 1 | . . . . . . 1 Best Kill Streak 1 | . . . . . 1 1 Combat Bots Only 1 | . . . . . . 1 Max Kills in Single Turn 1 | . . . . . 1 1 Gunslinging . | . . . . . . . Exploded . | . . . . . . . Melee 1 | . . . . . . 1 Uniques/NPCs Destroyed . | . . . . . . . Combat | -11 -10 -10 -10 -9 -8 -8 -------- Run | Scr Mat Min Exi Min Mat Gar Damage Taken 1428 | . 388 46 . 13 706 275 Core 320 | . 78 . . . 174 68 Absorbed by Shields . | . . . . . . . Core Remaining (%) 84 | 100 . . . 68 . . Volleys Fired . | . . . . . . . Largest . | . . . . . . . Hottest . | . . . . . . . Shots Fired . | . . . . . . . Gun . | . . . . . . . Cannon . | . . . . . . . Launcher . | . . . . . . . Special . | . . . . . . . Kinetic . | . . . . . . . Thermal . | . . . . . . . Explosive . | . . . . . . . Electromagnetic . | . . . . . . . Robot Hit Streak . | . . . . . . . Robot Miss Streak . | . . . . . . . Penetration Max . | . . . . . . . Secondary Targets . | . . . . . . . Shots Hit Robots 12 | . . . . . 12 . Core Hits 4 | . . . . . 3 1 Critical Hits . | . . . . . . . Critical Kills . | . . . . . . . Critical Parts Destroyed . | . . . . . . . Melee Attacks 48 | . 3 . . . 45 . Impact 48 | . 3 . . . 45 . Slashing . | . . . . . . . Piercing . | . . . . . . . Sneak Attacks . | . . . . . . . Combat Hostiles . | . . . . . . . Follow-up Attacks . | . . . . . . . Damage Inflicted 263 | . 1 . . 6 246 10 Guns . | . . . . . . . Cannons . | . . . . . . . Explosions . | . . . . . . . Melee 239 | . . . . . 239 . Ramming 24 | . 1 . . 6 7 10 Kinetic . | . . . . . . . Thermal . | . . . . . . . Explosive . | . . . . . . . Electromagnetic . | . . . . . . . Impact 239 | . . . . . 239 . Slashing . | . . . . . . . Piercing . | . . . . . . . Highest Corruption . | . . . . . . . Average Corruption . | . . . . . . . Corruption Purged . | . . . . . . . Overload Shots . | . . . . . . . Overflow Damage 39 | . . . . . 39 . Projectiles . | . . . . . . . Explosions . | . . . . . . . Melee 39 | . . . . . 39 . Knockbacks . | . . . . . . . Impact . | . . . . . . . Kinetic . | . . . . . . . Secondary . | . . . . . . . Self-Inflicted Damage 9 | . . . . 3 1 5 Shots . | . . . . . . . Rammed 8 | . 2 . . 1 4 1 Targets Rammed 8 | . 2 . . 1 4 1 Kicked . | . . . . . . . Crushed . | . . . . . . . Highest Temperature 7 | . . . . . 7 . Average Temperature 7 | . . . . . 7 . Received Heat Transfer 417 | . 42 9 . 6 324 36 Siege Activations . | . . . . . . . Robots Corrupted . | . . . . . . . Combat Hostiles . | . . . . . . . Parts Fried 2 | . . . . . 2 . Impact Corruptions 4 | . . . . . 4 . Robots Melted . | . . . . . . . Combat Hostiles . | . . . . . . . Parts Melted . | . . . . . . . Heat Transferred . | . . . . . . . Parts Sabotaged . | . . . . . . . Parts Stolen . | . . . . . . . Parts Stripped . | . . . . . . . Power Chain Reactions . | . . . . . . . Missiles Intercepted . | . . . . . . . Alert | -11 -10 -10 -10 -9 -8 -8 ------- Run | Scr Mat Min Exi Min Mat Gar Peak Influence 198 | . 35 13 . 22 198 173 Initial 118 | . . 13 . . 5 118 Average 31 | . 16 13 . . 50 127 Maximum Alert Level . | . . . . . . . Low Security (%) 100 | 100 100 100 . 100 100 100 Level 1 . | . . . . . . . Level 2 . | . . . . . . . Level 3 . | . . . . . . . Level 4 . | . . . . . . . Level 5 . | . . . . . . . High Security . | . . . . . . . Max Security . | . . . . . . . Squads Dispatched 3 | . 3 . . . . . Investigation 1 | . 1 . . . . . Extermination . | . . . . . . . Reinforcement 2 | . 2 . . . . . Assault . | . . . . . . . Garrison . | . . . . . . . Intercept . | . . . . . . . Construction Impeded . | . . . . . . . Haulers Reinforced . | . . . . . . . Stealth | -11 -10 -10 -10 -9 -8 -8 --------- Run | Scr Mat Min Exi Min Mat Gar Distress Signals . | . . . . . . . Communications Jammed . | . . . . . . . Distress Signals . | . . . . . . . Times Spotted 53 | . 12 2 . 5 14 20 Peak Tracking Total 18 | . 9 2 . 3 12 18 Tactical Retreats 4 | . 1 . . 1 1 1 Traps | -11 -10 -10 -10 -9 -8 -8 ------- Run | Scr Mat Min Exi Min Mat Gar Traps Triggered 2 | . 1 . . . . 1 Indirectly . | . . . . . . . Trap Hack Attempts . | . . . . . . . Triggered . | . . . . . . . Disarmed . | . . . . . . . Reprogrammed . | . . . . . . . Reused . | . . . . . . . Traps Extracted . | . . . . . . . Installed . | . . . . . . . Triggered . | . . . . . . . Machines | -11 -10 -10 -10 -9 -8 -8 ---------- Run | Scr Mat Min Exi Min Mat Gar Machines Disabled . | . . . . . . . Max in Single Turn . | . . . . . . . Machines Sabotaged . | . . . . . . . Garrisons Compromised . | . . . . . . . Overloaded Fab Kills . | . . . . . . . Fab Network Shutdowns . | . . . . . . . Hacking | -11 -10 -10 -10 -9 -8 -8 --------- Run | Scr Mat Min Exi Min Mat Gar Machines Accessed 6 | . . 1 2 . 3 . Terminals 2 | . . . . . 2 . Fabricators . | . . . . . . . Repair Stations . | . . . . . . . Recycling Units . | . . . . . . . Scanalyzers . | . . . . . . . Garrison Access 1 | . . . . . 1 . Total Hacks 9 | . . 1 2 . 6 . Successful 7 | . . 1 2 . 4 . Failed 2 | . . . . . 2 . Catastrophic 1 | . . . . . 1 . Database Lockouts . | . . . . . . . Manual 6 | . . . 1 . 5 . Terminals 4 | . . . . . 4 . Fabricators . | . . . . . . . Repair Stations . | . . . . . . . Recycling Units . | . . . . . . . Scanalyzers . | . . . . . . . Garrison Access 2 | . . . . . 2 . Terminal Hacks 3 | . . 1 2 . . . Record 1 | . . . 1 . . . Open Door 1 | . . 1 . . . . EX-Prototype ID Bank 1 | . . . 1 . . . Fabricator Hacks . | . . . . . . . Repair Station Hacks . | . . . . . . . Recycling Unit Hacks . | . . . . . . . Scanalyzer . | . . . . . . . Garrison Access Hacks 1 | . . . . . 1 . Unlock Access 1 | . . . . . 1 . Unauthorized Hacks 3 | . . . . . 3 . Terminals 2 | . . . . . 2 . Botnet 1 | . . . . . 1 . Disrupt 1 | . . . . . 1 . Fabricators . | . . . . . . . Repair Stations . | . . . . . . . Recycling Units . | . . . . . . . Scanalyzers . | . . . . . . . Garrison Access 1 | . . . . . 1 . Watchers 1 | . . . . . 1 . Data Cores Recovered . | . . . . . . . Used . | . . . . . . . Hacking Detections 2 | . . . . . 2 . Full Trace Events . | . . . . . . . Feedback Events . | . . . . . . . Feedback Blocked . | . . . . . . . Robot Schematics Acquired . | . . . . . . . Robots Built . | . . . . . . . Matter . | . . . . . . . Time . | . . . . . . . Total Robot Build Rating . | . . . . . . . Part Schematics Acquired . | . . . . . . . Parts Built . | . . . . . . . Matter . | . . . . . . . Time . | . . . . . . . Total Part Build Rating . | . . . . . . . Parts Repaired . | . . . . . . . Time . | . . . . . . . Parts Recycled . | . . . . . . . Recycled Matter . | . . . . . . . Retrieved Matter . | . . . . . . . Retrieved Components . | . . . . . . . Parts Scanalyzed . | . . . . . . . Part Schematics Acquired . | . . . . . . . Parts Damaged . | . . . . . . . Bothacking | -11 -10 -10 -10 -9 -8 -8 ------------ Run | Scr Mat Min Exi Min Mat Gar Used RIF Installer . | . . . . . . . Robots Hacked . | . . . . . . . Non-combat . | . . . . . . . Combat . | . . . . . . . Robot Hacks Applied . | . . . . . . . Relay Couplers Released . | . . . . . . . Robots Rewired . | . . . . . . . Allies Hacked . | . . . . . . . Hacks Repelled . | . . . . . . . Allies | -11 -10 -10 -10 -9 -8 -8 -------- Run | Scr Mat Min Exi Min Mat Gar Total Allies 3 | . . . . 3 . . Largest Group 3 | . . . . 3 . . Highest-Rated Group 40 | . . . . 40 . . Highest-Rated Ally 16 | . . . . 16 . . Total Orders . | . . . . . . . Ally Attacks 15 | . . . . 15 . . Total Damage 135 | . . . . 135 . . Kills 1 | . . . . 1 . . Allies Corrupted . | . . . . . . . Allies Melted . | . . . . . . . Intel | -11 -10 -10 -10 -9 -8 -8 ------- Run | Scr Mat Min Exi Min Mat Gar Robot Analysis Total . | . . . . . . . Derelict Logs Recovered 1 | . . . . 1 . . Drone Launches . | . . . . . . . Drone Recoveries . | . . . . . . . Exploration | -11 -10 -10 -10 -9 -8 -8 ------------- Run | Scr Mat Min Exi Min Mat Gar Turns Passed 1284 | 4 87 143 156 323 520 51 Spaces Moved 1663 | 1 144 262 308 415 442 91 Core 1662 | 1 144 262 308 415 442 90 Treads 1 | . . . . . . 1 Legs . | . . . . . . . Wheels . | . . . . . . . Hover . | . . . . . . . Flight . | . . . . . . . Fastest Speed 50 | 50 50 50 50 50 50 50 Average Speed 50 | 50 50 50 50 50 53 51 Slowest Speed 145 | 50 50 50 50 50 100 145 Overloaded Moves . | . . . . . . . Propulsion Burnouts . | . . . . . . . Robots Hopped . | . . . . . . . Cave-ins Triggered . | . . . . . . . Exploration Rate (%) 43 | 2 24 68 69 80 32 30 Regions Visited 6 Branch Regions 3 Pre-discovered Areas 2 | . . . 1 1 . . Known Exits Taken 5 | . 1 1 1 1 1 . Unknown Exits Taken 1 | 1 . . . . . . Scrap Searched 2 | . . 1 . 1 . . Spaces Dug 19 | . 1 . . . 18 . Terrain Destroyed 19 | . 1 . . . 18 . Melee 19 | . 1 . . . 18 . Projectile . | . . . . . . . AOE . | . . . . . . . Terrain Rammed . | . . . . . . . Walls Destroyed . | . . . . . . . Machines Disabled . | . . . . . . . Actions | -11 -10 -10 -10 -9 -8 -8 --------- Run | Scr Mat Min Exi Min Mat Gar Total 2026 | 6 155 273 309 530 658 95 Wait 272 | . . 8 . 111 153 . Move 1656 | . 143 261 307 414 441 90 Hop . | . . . . . . . Pick Up 6 | . 2 1 1 1 1 . Fast Attach 4 | . . 1 . . 3 . Attach 9 | 1 2 1 . . 3 2 Detach 5 | 1 1 . . . 3 . Swap 3 | . . . . 1 2 . Drop 13 | 4 2 1 1 2 3 . Fire . | . . . . . . . Melee 48 | . 3 . . . 45 . Ram 6 | . 2 . . 1 2 1 Kick . | . . . . . . . Crush 2 | . . . . . 2 . Escape Stasis 2 | . . . . . . 2 Rewire . | . . . . . . . Trap . | . . . . . . . Miscellaneous . | . . . . . . . Route ------- -11/Scrapyard -10/Materials -10/Mines (discovered 2 exits: *Mat / *Exi) -10/Exiles -9/Mines -8/Materials (discovered 2 exits: [*Fac] / Gar) -8/Garrison (discovered 1 exit: *Mat) History --------- Turn | Location | Event 5 | -11/Scrapyard | Discovered new exit (range 0) 5 | -11/Scrapyard | Entered Materials 84 | -10/Materials | Discovered new exit (range 15) 91 | -10/Materials | Identified exit to Mines 92 | -10/Materials | Entered Mines 92 | -10/Mines | Discovered new exit (range 6) 93 | -10/Mines | Assembled infested the area 99 | -10/Mines | Received a Rocket Launcher from a helpful Derelict 104 | -10/Mines | Identified exit to Materials 120 | -10/Mines | Met a Derelict bent on vengeance 152 | -10/Mines | Met a Derelict who couldn't figure out how to use a Trap Extractor 213 | -10/Mines | Met 8R-AWN 233 | -10/Mines | Discovered new exit (range 5) 235 | -10/Mines | Identified exit to Exiles 235 | -10/Mines | Entered Exiles 247 | -10/Exiles | Welcomed by 8R-AWN 257 | -10/Exiles | Met EX-HEX 278 | -10/Exiles | Met EX-DEC 286 | -10/Exiles | Learned location of Zion (-7) 311 | -10/Exiles | Build established: Mutant 318 | -10/Exiles | Met EX-BIN 325 | -10/Exiles | Aligned with FarCom system 325 | -10/Exiles | Given EX-Vault access code 337 | -10/Exiles | Opened EX-Vault 340 | -10/Exiles | Found Cloak of Protection 353 | -10/Exiles | Warned to stay clear of 0b10 Research branches 387 | -10/Exiles | Discovered new exit (range 10) 390 | -10/Exiles | Identified exit to Mines 391 | -10/Exiles | Left Exiles lab with Cloak of Protection 391 | -10/Exiles | Entered Mines 518 | -9/Mines | Joined a pair of Derelicts in attacking an 0b10 outpost 650 | -9/Mines | Assisted by bots powering up and referring to "LRC-V3" 708 | -9/Mines | Discovered new exit (range 12) 713 | -9/Mines | Identified exit to Materials 714 | -9/Mines | Entered Materials 714 | -8/Materials | Evolved 4 slots: Propulsion x1, Utility x3 891 | -8/Materials | Identified exit to Garrison 1128 | -8/Materials | Discovered new exit (range 9) 1234 | -8/Materials | Entered Garrison 1250 | -8/Garrison | Lost 3 parts (2n1w) 1260 | -8/Garrison | Triggered checkpoint 1278 | -8/Garrison | Discovered new exit (range 10) 1282 | -8/Garrison | Identified exit to Materials 1282 | -8/Garrison | Attempted to access garrison exit controls, blocked by remote lockdown 1285 | -8/Garrison | Self-destructed Last Messages --------------- 01216_ Slammed into A-02 Transporter. 01219_ Adv. Treads destroyed. LOCATION=GARRISON GOAL=ESCAPE 01234_ Receiving FarCom transmissions... 01256_ Triggered Stasis Trap. 01256_ A bubble of rippling energy engulfs the area. 01256_ Field strength at 94. 01257_ Field strength at 50. 01259_ Field strength at 9. 01260_ Stasis field depleted. Garrison Door activated. 01278_ EXIT=FOUND 01281_ Adv. Treads destroyed. 01282_ EXIT=IDENTIFIED: MATERIALS 01282_ Attempting to access garrison exit controls... 01282_ Remote lockdown engaged. 01284_ Slammed into S-10 Pest. 01284_ S-10 Pest destroyed. 01285_ Acquired 15 matter. Map ----- +----------------------------------------------------+ | ?????????????????????????????????????????????????? | | ?????????????????????????????????????????????????? | | ?????????????????????????????????????????????????? | | ?????????????????????????????????????????????????? | | ?????????????????????????????????????????????????? | | ?????????????????????????????????????????????????? | | ?????????????????????????????????????????????????? | | ?????????????????????????????????????????????????? | | ?????????????????????????????????????????????????? | | ?????????????????????????????????????????????????? | | ?????????????????????????????????????????????????? | | ?????????????????????????????????????????????????? | | ?????????????????????????????????????????????????? | | ?????????????????????????????????????????????????? | | ?????????????????????????????????????????????????? | | ?????????????????????????????????????????????????? | | ?????????????????????????????????????????????????? | | ?????????????????????????????????????????????????? | | ???????????????????????######????????????????????? | | ???????????????????????# #????????????????????? | | ???????????????????????# < #????????????????????? | | ???????????????????????# #????????????????????? | | ???????????????????????# ###????????????????????? | | ???????????????????????# #??????????????????????? | | ???????????????????????# #??????????????????????? | | ???????????????????????#s@#??????????????????????? | | ???????????????????????#s #??????????????????????? | | ???????????????????????#ss#??????????????????????? | | ???????????????????????#s #??????????????????????? | | ????????################s #??????????????????????? | | ????????# s s #??????????????????????? | | ????????# g s #??????????????????????? | | ????????# #####+#####s####??????????????????????? | | ????????# #?????????# #?????????????????????????? | | ????????# #????g????# #?????????????????????????? | | ????????# #?????????# #?????????????????????????? | | ????????# #??????gg?# #?????????????????????????? | | ??####### Y#?????????# #???gg????????????????????? | | ??# ## #?????????# #?????????????????????????? | | ### ## ##???g????? ??????????????????????????? | | #?????????#??????????????????????????? | | #????????????????????????????????????? | | #????????????????????????????????????? | | ## ## #????????????????????????????????????? | | ## ## #????????????????????????????????????? | | ???????????????????????????????????? | | #??????????????????????????????????? | | #??????????????????????????????????? | | #??????????????????????????????????? | | ## ## ###??????????????????????????????????? | +----------------------------------------------------+ Best States ------------- Heat Dissipation 31 Energy Generation 5 Energy Capacity 100 Matter Stores 300 Matter Capacity 300 Sight Range 16 Terrain Scan Density 10 Armor Coverage 150 Evasion (%) 50 Recoil Reduction 3 Offensive Hacking 20 Item Schematics ----------------- None Robot Schematics ------------------ None Fabricated ------------ Nothing Alien Tech Used ----------------- None Achievements -------------- None Challenges ------------ None Game ------ Seed SuperchargedMomentumFrame Manual? 0 Play Time 00:24:30 Cumulative 784.6 hours Start 2021.06.07 @ 11:23:10 End 2021.06.07 @ 11:49:15 Sessions 1 Manual Loads 0 Difficulty Rogue Special Mode None Game No. 509 Rogue 509 Adventurer 0 Explorer 0 Win Type - Total 113 Types 77/7/8/10/5/1/4/0/1 Lore% 96 Gallery% 94 Achievement% 82 Wizard Run 0 Options --------- ASCII 0 Keyboard 0 Movement Numpad Keybinds 0 Fullscreen 2 Font 18/SmallcapsGlow Map View 76x50 Tactical HUD 1 Map Filters NONE Filters NONE Steam 1 RUN: 66cb5e26-687d-4ffe-9e93-358d2642719b